[Event "Bhopal GM Open 2018"]
[Site "Bhopal"]
[Date "2018.12.22"]
[Round "3"]
[White "Raahul V S"]
[Black "Vignesh N"]
[Result "1-0"]
[ECO "A20"]
[WhiteElo "2381"]
[BlackElo "1852"]
[Annotator "NA"]
[PlyCount "63"]
[EventDate "2018.12.21"]
[EventType "swiss"]
[EventCountry "IND"]
[SourceTitle "playchess.com"]
[Source "ChessBase"]
[SourceQuality "1"]
[TimeControl "5400+30"]

{[%evp 8,55,45,40,37,18,5,22,11,7,14,-2,106,49,111,70,132,85,169,182,207,197,213,175,200,32767,32767,32767,32767,32767,32767,197,217,84,591,621,631,700,667,710,688,675,668,725,754,770,814,32767,1126,811]} 1. c4 {[%emt 0:00:00]} e5 {[%emt 0:00:00]} 2. g3 {[%emt 0:00:00]} Nc6 {[%emt 0:00:00]} 3. Bg2 {[%emt 0:00:00]} f5 {[%emt 0:00:16]} 4. Nc3 {[%emt 0:00:18]} Nf6 {[%emt 0:00:12]} 5. e3 {[%emt 0:00:16]} d5 {[%emt 0:00:12]} 6. Nxd5 {[%emt 0:00:16]} Nxd5 {[%emt 0:00:12] A25: English Opening vs King's Indian with ...Nc6 but without early d3} 7. cxd5 {[%emt 0:00:06]} ({Of course not} 7. Bxd5 Nb4 $15) 7... Nb4 {[%emt 0:00:16]} 8. d3 {[%emt 0:00:14]} c6 {[%emt 0:05:27] LiveBook: 8 Games} (8... Nxd5 9. Nf3 Bb4+ 10. Bd2 Bxd2+ 11. Qxd2 Qd6 12. O-O O-O 13. e4 Ne7 14. d4 fxe4 15. Nxe5 {1-0 (50) Kramnik,V (2799)-Bartel,M (2674) Dortmund 2012 CBM 150 [Marin,M]}) 9. Ne2 {[%emt 0:08:41]} cxd5 $146 {[%emt 0:01:04]} ({Predecessor:} 9... Nxd5 $11 10. O-O Be6 11. a3 Bd6 12. e4 fxe4 13. dxe4 Nb6 14. Bg5 {½-½ (37) Breahna,R (2461)-Spitz,P (2555) ICCF email 2005}) 10. O-O {[%emt 0:00:38]} Be7 {[%emt 0:04:44]} 11. Qb3 {[%emt 0:02:07]} Be6 {[%emt 0:01:19]} (11... e4 $14) 12. f4 {[%emt 0:01:52]} Qc8 {[%emt 0:13:37]} (12... Qd7 $16 {was called for.}) 13. fxe5 {[%emt 0:08:49]} d4 {[%emt 0:00:48]} 14. Qa4+ {[%emt 0:00:04]} Bd7 {[%emt 0:00:23] [#]} 15. Qd1 $1 {[%emt 0:00:14]} Nc2 {[%emt 0:00:29]} 16. Rb1 {[%emt 0:00:01]} dxe3 {[%emt 0:00:27]} 17. Nc3 {[%emt 0:00:34]} Bc5 {[%emt 0:03:06]} 18. Kh1 {[%emt 0:00:09]} Nd4 {[%emt 0:01:49]} 19. Bxe3 {[%emt 0:00:07]} Bc6 {[%emt 0:00:29]} 20. Qd2 {[%emt 0:01:15]} (20. Bxd4 $18 {and White stays clearly on top.} Bxd4 21. Nd5) 20... b6 $2 {[%emt 0:02:57]} (20... O-O $16 {holds on.}) 21. b4 {[%emt 0:00:27]} Bxg2+ {[%emt 0:01:56]} 22. Qxg2 {[%emt 0:00:12] N} Ne2 {[%emt 0:05:04]} 23. Nb5 {[%emt 0:00:50] B} Be7 {[%emt 0:02:06]} 24. Rb2 {[%emt 0:00:06]} O-O {[%emt 0:03:26]} 25. Rxe2 {[%emt 0:00:53]} Qd7 {[%emt 0:00:16] [#]} 26. Nd6 $1 {[%emt 0:00:23]} Qe6 {[%emt 0:02:43] [#]} 27. Nxf5 $1 {[%emt 0:00:51]} Bxb4 {[%emt 0:00:19]} 28. d4 {[%emt 0:00:36]} Rad8 {[%emt 0:00:45]} 29. Ref2 {[%emt 0:00:24]} Rd7 {[%emt 0:01:53]} 30. Bd2 {[%emt 0:01:26]} Ba3 {[%emt 0:01:50]} 31. Qf3 {[%emt 0:00:08]} Rdf7 {[%emt 0:00:52]} 32. Qxa3 {[%emt 0:00:43]} 1-0

[Event "Bhopal GM Open 2018"]
[Site "Bhopal"]
[Date "2018.12.23"]
[Round "4"]
[White "Rathnakaran, K.."]
[Black "Chandreyee, Hajra"]
[Result "1-0"]
[ECO "B10"]
[WhiteElo "2366"]
[BlackElo "1933"]
[Annotator "NA"]
[PlyCount "79"]
[EventDate "2018.12.21"]
[EventType "swiss"]
[EventCountry "IND"]
[SourceTitle "playchess.com"]
[Source "ChessBase"]
[SourceQuality "1"]
[TimeControl "5400+30"]

1. e4 {[%emt 0:00:00]} c6 {[%emt 0:00:11]} 2. d3 {[%emt 0:00:00]} d5 {[%emt 0:00:08]} 3. Nd2 {[%emt 0:00:00]} e5 {[%emt 0:02:03]} 4. Ngf3 {[%emt 0:00:00]} Bd6 {[%emt 0:03:28]} 5. g3 {[%emt 0:00:00]} Nf6 {[%emt 0:01:27]} 6. Bg2 {[%emt 0:00:00]} O-O {[%emt 0:00:59]} 7. O-O {[%emt 0:00:05]} Be6 {[%emt 0:04:11] LiveBook: 6 Games. B10: Caro-Kann: 2 d3 and 2 c4} (7... Re8 8. Re1 Nbd7 9. c3 h6 10. Qc2 Nf8 11. b3 Ng6 12. Bb2 Bg4 13. h3 Be6 14. Rad1 Qc7 15. Nf1 Rad8 16. Ne3 Qc8 17. Kh2 {0-1 (39) Mamedyarov,S (2799)-Grischuk,A (2772) Huaian 2017}) 8. Ng5 $146 {[%emt 0:00:21]} ({Predecessor:} 8. b3 Nbd7 9. Bb2 Re8 10. Re1 Qc7 11. Qe2 h6 12. h3 Rad8 13. a3 a5 14. Nh4 b5 15. a4 {1-0 (64) Pancevski,F (2498)-Ioannidis,E (2296) Thessaloniki 2018}) 8... Bg4 {[%emt 0:03:02]} 9. f3 {[%emt 0:00:07]} Bc5+ {[%emt 0:03:44] Black is better.} 10. Kh1 {[%emt 0:00:09]} Bh5 {[%emt 0:02:14]} 11. g4 {[%emt 0:01:24]} Bg6 {[%emt 0:01:34]} 12. Nb3 {[%emt 0:00:40]} Be7 {[%emt 0:01:49]} 13. Nh3 {[%emt 0:00:08]} dxe4 {[%emt 0:04:00]} 14. fxe4 {[%emt 0:00:06]} Qd7 {[%emt 0:04:42]} 15. Nf2 {[%emt 0:00:41]} Na6 {[%emt 0:03:23]} 16. Be3 {[%emt 0:01:58]} h5 {[%emt 0:02:53]} (16... h6 $11) 17. gxh5 $14 {[%emt 0:01:06]} Bxh5 {[%emt 0:00:39]} 18. Bf3 {[%emt 0:00:05]} Bxf3+ {[%emt 0:04:13]} (18... Bg6 $1 $14) 19. Qxf3 $16 {[%emt 0:00:59]} c5 {[%emt 0:03:29]} (19... g6 $16 {was necessary.}) 20. Rg1 $18 {[%emt 0:01:01]} Kh7 {Accuracy: White = 74%, Black = 25%.} (20... Rfc8 $142 21. Qg3 g6) 21. Rg5 {[%emt 0:20:06]} Rh8 {[%emt 0:16:08]} 22. Rag1 {[%emt 0:00:41]} g6 {[%emt 0:05:40]} 23. Ng4 {[%emt 0:04:05]} Kg7 {[%emt 0:04:01]} 24. Nxe5 {[%emt 0:11:22]} Qe6 {[%emt 0:03:16]} 25. Bf4 {[%emt 0:09:49]} Rh3 {[%emt 0:03:02]} 26. Qg2 {[%emt 0:02:56]} Nh5 {[%emt 0:03:01]} 27. Rf5 {[%emt 0:05:04]} Nxf4 {[%emt 0:02:09]} 28. Rxf4 {[%emt 0:00:08]} Rxh2+ {[%emt 0:10:39]} 29. Qxh2 {[%emt 0:00:14]} Bd6 {[%emt 0:01:32]} 30. Rxf7+ {[%emt 0:00:21]} Qxf7 {[%emt 0:00:17]} 31. Qh6+ {[%emt 0:00:05]} Kxh6 {[%emt 0:00:21]} 32. Nxf7+ {[%emt 0:00:04]} Kg7 {[%emt 0:00:30]} 33. Nxd6 {[%emt 0:00:04]} Nb4 {[%emt 0:00:09]} 34. Rg2 {[%emt 0:00:33]} b6 {[%emt 0:01:03]} 35. d4 {[%emt 0:01:03]} Rd8 {[%emt 0:01:07]} 36. dxc5 {[%emt 0:00:26]} bxc5 {[%emt 0:00:37]} 37. Rd2 {[%emt 0:00:04]} Rh8+ {[%emt 0:01:26]} 38. Kg2 {[%emt 0:00:22]} Rh5 {[%emt 0:00:44]} 39. a3 {[%emt 0:00:04]} Nc6 {[%emt 0:00:16]} 40. Rd5 {[%emt 0:00:06]} 1-0

[Event "Bhopal GM Open 2018"]
[Site "Bhopal"]
[Date "2018.12.23"]
[Round "4"]
[White "Tran, Minh Thang"]
[Black "Sri Sai Baswanth P"]
[Result "1-0"]
[ECO "A04"]
[WhiteElo "2342"]
[BlackElo "1921"]
[Annotator "NA"]
[PlyCount "49"]
[EventDate "2018.12.21"]
[EventType "swiss"]
[EventCountry "IND"]
[SourceTitle "playchess.com"]
[Source "ChessBase"]
[SourceQuality "1"]
[TimeControl "5400+30"]

{[%evp 9,35,11,-10,-8,-11,-7,23,11,30,43,30,10,81,77,97,110,105,98,128,108,127,107,101,109,132,140,123,132]} 1. Nf3 {[%emt 0:00:00]} f5 {[%emt 0:01:22]} 2. b3 {[%emt 0:00:36]} Nf6 {[%emt 0:00:22]} 3. Bb2 {[%emt 0:00:10]} e6 {[%emt 0:00:17]} 4. h3 {[%emt 0:00:23]} (4. g3 b6 5. Bg2 Bb7 6. d3 g6 7. Nbd2 Bg7 8. c4 O-O 9. O-O Qe7 10. Rb1 c5 11. e3 d6 12. d4 {½-½ (59) Rakhmanov,A (2620)-Anton Guijarro,D (2635) Linares 2015}) 4... Be7 $146 {[%emt 0:04:06]} ({Predecessor:} 4... d6 5. d4 Nc6 6. Rg1 Be7 7. g4 fxg4 8. hxg4 e5 9. dxe5 Nxg4 10. exd6 Bh4 11. Nxh4 Qxh4 {0-1 (60) Borgo,G (2442)-Lucaroni,M (2289) Bratto 2008}) 5. g4 {[%emt 0:00:19]} O-O {[%emt 0:01:22]} 6. e3 {[%emt 0:02:44] A04: Unusual lines after 1 Nf3 and King's Indian Attack} d5 {[%emt 0:00:59]} 7. gxf5 {[%emt 0:02:59]} exf5 {[%emt 0:01:46]} 8. Rg1 {[%emt 0:00:15] White has an edge.} Nc6 {[%emt 0:01:13]} 9. Nc3 {[%emt 0:00:17]} Kh8 {[%emt 0:09:19]} 10. Ne2 {[%emt 0:01:06]} Be6 {[%emt 0:02:20]} (10... Bd6 $11 {remains equal.}) 11. Nf4 $16 {[%emt 0:00:22]} Qd7 {[%emt 0:03:21]} 12. Bb5 {[%emt 0:02:10]} Bd6 13. Ne5 {[%emt 0:13:27]} Bxe5 {[%emt 0:03:46]} 14. Bxe5 {[%emt 0:00:11]} Rae8 {[%emt 0:02:38]} 15. Bxc6 {[%emt 0:02:26]} Qxc6 {[%emt 0:02:52]} 16. Qf3 {[%emt 0:00:56]} Bd7 {[%emt 0:04:30]} 17. Bd4 Qd6 {[%emt 0:06:21]} 18. O-O-O {[%emt 0:06:42] Precision: White = 73%, Black = 45%.} ({Inferior is} 18. Bxa7 b6 $17) 18... Rf7 {[%emt 0:02:45]} 19. Nh5 {[%emt 0:02:31]} Nxh5 {[%emt 0:01:39]} 20. Qxh5 {[%emt 0:00:08]} Ree7 {[%emt 0:06:12]} 21. f4 {[%emt 0:02:28]} Be8 {[%emt 0:09:31]} 22. Rg5 {[%emt 0:01:38]} Qe6 {[%emt 0:08:21]} 23. Rdg1 {[%emt 0:00:46]} Rf6 {[%emt 0:02:33]} 24. Qh4 {[%emt 0:00:48]} Rff7 {[%emt 0:12:45]} 25. Rh5 {[%emt 0:00:22]} 1-0

[Event "Bhopal GM Open 2018"]
[Site "Bhopal"]
[Date "2018.12.23"]
[Round "4"]
[White "Dinesh Kumar Jaganathan"]
[Black "Raahul V S"]
[Result "1/2-1/2"]
[ECO "A31"]
[WhiteElo "1969"]
[BlackElo "2381"]
[Annotator "NA"]
[PlyCount "75"]
[EventDate "2018.12.21"]
[EventType "swiss"]
[EventCountry "IND"]
[SourceTitle "playchess.com"]
[Source "ChessBase"]
[SourceQuality "1"]
[TimeControl "5400+30"]

1. Nf3 {[%emt 0:00:00]} Nf6 {[%emt 0:00:00]} 2. c4 {[%emt 0:00:06]} c5 {[%emt 0:00:00]} 3. d4 {[%emt 0:00:05]} cxd4 {[%emt 0:00:00]} 4. Nxd4 {[%emt 0:00:03]} Nc6 {[%emt 0:01:16]} 5. Nc3 {[%emt 0:00:18]} g6 {[%emt 0:01:05]} 6. e4 {[%emt 0:00:29]} Bg7 {[%emt 0:00:06] LiveBook: 695 Games} 7. Nxc6 {[%emt 0:04:13] B36: Sicilian: Maroczy Bind: Gurgenidze System} (7. Be3 d6 8. Be2 O-O 9. O-O Bd7 10. Qd2 Nxd4 11. Bxd4 Bc6 12. f3 a5 13. b3 Nd7 14. Be3 Nc5 15. Rab1 Qb6 16. Rfc1 Rfc8 17. Bf1 Qb4 18. Qb2 Qb6 19. Kh1 h5 20. a3 Qd8 21. Rd1 b6 22. Qd2 Kh7 23. Ne2 Ne6 24. Nc3 Nc5 25. Nd5 {1-0 (61) Bu,X (2730)-Savchenko,B (2566) Riadh 2017}) 7... bxc6 {[%emt 0:00:40]} 8. e5 {[%emt 0:01:10]} Ng8 $1 {[%emt 0:00:08]} 9. Bf4 {[%emt 0:00:50] The position is equal.} Qa5 {[%emt 0:01:48]} 10. Qd4 {[%emt 0:01:18]} (10. Qe2 $11) 10... d6 $146 {[%emt 0:01:27]} ({Predecessor:} 10... Rb8 $15 11. O-O-O d6 (11... Nh6 12. Bd3 O-O 13. Rhe1 d6 14. Qe3 Ng4 15. Qf3 Nxe5 16. Bxe5 Bxe5 17. Bb1 Bxc3 18. Qxc3 Qxc3+ 19. bxc3 Re8 20. Rxd6 {½-½ (20) Matysek,A-Szopa,J Slask 1996})) 11. c5 $1 $11 {[%emt 0:06:19]} d5 {[%emt 0:12:29]} (11... g5 $11 12. Bg3 (12. Bxg5 Bxe5 13. Qd2 Rb8 $15) 12... Rb8) 12. b4 $36 {[%emt 0:01:16] White fights for an advantage.} Qc7 {[%emt 0:00:08]} 13. b5 {[%emt 0:02:49] Threatens to win with bxc6.} e6 {[%emt 0:00:42]} 14. b6 {[%emt 0:06:39]} (14. Bd3 $16) 14... Qb8 {[%emt 0:00:37]} (14... Qe7 $142) 15. Rb1 $11 {[%emt 0:02:45]} Bb7 {[%emt 0:04:07]} 16. Bd3 {[%emt 0:05:24]} a6 $2 {[%emt 0:08:46] [#]} (16... Ne7 $11 {and Black is okay.}) 17. h4 $18 {[%emt 0:00:09] White is clearly better.} Ne7 18. h5 {[%emt 0:03:22]} O-O {[%emt 0:02:45]} 19. g4 {[%emt 0:07:16] Accuracy: White = 47%, Black = 30%.} f6 {[%emt 0:09:11]} 20. exf6 {[%emt 0:09:14]} Bxf6 {[%emt 0:00:02]} 21. Qxf6 {[%emt 0:00:17]} Rxf6 {[%emt 0:01:14]} 22. Bxb8 {[%emt 0:00:07]} Rxb8 {[%emt 0:00:03]} 23. Rb4 {[%emt 0:01:52]} Rbf8 {[%emt 0:00:09]} 24. Ra4 {[%emt 0:00:50]} Rf4 {[%emt 0:00:24]} 25. hxg6 {[%emt 0:13:49]} Nxg6 {[%emt 0:01:28]} 26. Bxg6 {[%emt 0:07:27]} hxg6 {[%emt 0:00:03]} 27. g5 {[%emt 0:04:34]} Rxa4 {[%emt 0:03:55]} 28. Nxa4 {[%emt 0:00:01]} Rf4 {[%emt 0:00:11]} 29. Nb2 {[%emt 0:02:32]} Rb4 {[%emt 0:00:39]} 30. Nd1 {[%emt 0:00:09]} Rc4 {[%emt 0:01:40]} 31. Rh6 {[%emt 0:03:13]} Kg7 {[%emt 0:00:15]} 32. Ne3 {[%emt 0:00:41]} Re4 {[%emt 0:01:59]} 33. Kd2 {[%emt 0:00:40]} Ra4 {[%emt 0:02:01]} 34. f3 {[%emt 0:01:45]} Rxa2+ {[%emt 0:00:03]} 35. Ke1 {[%emt 0:00:33]} Ra1+ {[%emt 0:01:51]} 36. Kf2 Ra2+ {[%emt 0:01:11]} 37. Ke1 {[%emt 0:01:25]} Ra3 {[%emt 0:01:34]} 38. Kf2 {[%emt 0:00:37]} 1/2-1/2

[Event "Bhopal GM Open 2018"]
[Site "Bhopal"]
[Date "2018.12.23"]
[Round "4"]
[White "Pandey Srishti"]
[Black "Anuj Shrivatri"]
[Result "1/2-1/2"]
[ECO "C27"]
[WhiteElo "1825"]
[BlackElo "2357"]
[Annotator "NA"]
[PlyCount "144"]
[EventDate "2018.12.21"]
[EventType "swiss"]
[EventCountry "IND"]
[SourceTitle "playchess.com"]
[Source "ChessBase"]
[SourceQuality "1"]
[TimeControl "5400+30"]

1. e4 e5 {[%emt 0:00:00]} 2. Nc3 {[%emt 0:00:00]} Nf6 {[%emt 0:00:00]} 3. Bc4 {[%emt 0:00:00]} Nxe4 {[%emt 0:00:00]} 4. Qh5 {[%emt 0:00:07]} Nd6 {[%emt 0:00:06]} 5. Bb3 {[%emt 0:00:05]} Nc6 {[%emt 0:02:41]} 6. Nb5 {[%emt 0:00:13]} g6 {[%emt 0:08:02]} 7. Qf3 {[%emt 0:00:17]} f5 {[%emt 0:00:51]} 8. Qd5 {[%emt 0:00:21]} Qe7 {[%emt 0:00:15]} 9. Nxc7+ {[%emt 0:00:08]} Kd8 {[%emt 0:00:04]} 10. Nxa8 {[%emt 0:00:11]} b6 {[%emt 0:00:22]} 11. d3 {[%emt 0:02:40] LiveBook: 13 Games. C27: Vienna Game: 2...Nf6 3 Bc4 Nxe4} (11. Ne2 $18) (11. Qf3 Bb7 12. Nxb6 Nd4 13. Qh3 axb6 14. c3 Ne6 15. Bxe6 Qxe6 16. Ne2 g5 17. d4 g4 18. Qh4+ Kc8 19. dxe5 Bxg2 {1-0 (65) Zhao,J (2552)-Schneider,D (2502) Richardson 2007}) 11... Nd4 12. h4 {[%emt 0:23:19]} ({Predecessor:} 12. Nh3 $146 f4 13. Nxb6 axb6 14. Qa8 Kc7 15. Bd5 Nxc2+ 16. Ke2 Nb5 17. Bd2 Nbd4+ 18. Kd1 Nxa1 {1-0 (41) Roebuck,D (2305)-Latal,F (2115) ICCF email 2016}) 12... f4 {[%emt 0:15:58]} 13. Bxf4 exf4+ {[%emt 0:02:29]} 14. Kf1 {[%emt 0:15:41]} Ne6 {[%emt 0:07:16]} 15. Qf3 {[%emt 0:03:29]} Nd4 {[%emt 0:17:18]} 16. Qxf4 {[%emt 0:20:48]} Bg7 {[%emt 0:00:41]} 17. Re1 {[%emt 0:04:56]} Qf6 {[%emt 0:00:59]} 18. Qxf6+ {[%emt 0:02:49]} Bxf6 {[%emt 0:00:26]} 19. c3 {[%emt 0:01:19]} Nxb3 {[%emt 0:00:48]} 20. axb3 {[%emt 0:00:01]} Bb7 {[%emt 0:04:54]} 21. Nxb6 {[%emt 0:00:55]} axb6 {[%emt 0:00:08]} 22. h5 {[%emt 0:00:06]} g5 {[%emt 0:00:51]} 23. Ne2 {[%emt 0:04:18]} Nf5 {[%emt 0:02:07]} 24. Ng3 {[%emt 0:00:25]} Nxg3+ {[%emt 0:00:43]} 25. fxg3 {[%emt 0:00:01]} h6 {[%emt 0:12:16]} 26. Kg1 {[%emt 0:03:46]} Bd5 {[%emt 0:04:24]} 27. b4 {[%emt 0:00:32]} Bf7 {[%emt 0:02:51]} 28. Kf2 {[%emt 0:02:26]} Rf8 {[%emt 0:00:23]} 29. g4 {[%emt 0:00:17]} Be6 {[%emt 0:08:49]} 30. Kg3 {[%emt 0:00:20]} Be7 {[%emt 0:05:20]} 31. Rhf1 {[%emt 0:00:06]} Bd6+ {[%emt 0:01:06]} 32. Kh3 {[%emt 0:00:06]} Rf4 {[%emt 0:01:12]} 33. Rxf4 {[%emt 0:00:04]} Bxf4 {[%emt 0:00:03]} 34. Ra1 {[%emt 0:01:04]} Bb8 {[%emt 0:00:49]} 35. c4 {[%emt 0:00:57]} Be5 {[%emt 0:01:55]} 36. Ra8+ {[%emt 0:00:12]} Ke7 {[%emt 0:00:33]} 37. b3 {[%emt 0:00:21]} Bc3 {[%emt 0:00:27]} 38. b5 {[%emt 0:02:34]} Kd6 {[%emt 0:00:30]} 39. Rc8 {[%emt 0:00:47]} Ke5 {[%emt 0:01:12]} 40. Rh8 {[%emt 0:00:09]} Kf4 {[%emt 0:00:25]} 41. Rxh6 {[%emt 0:02:07]} Bxg4+ {[%emt 0:00:08]} 42. Kh2 {[%emt 0:00:01]} Be6 {[%emt 0:00:14]} 43. Rh7 {[%emt 0:02:22]} Kf5 {[%emt 0:00:54]} 44. Re7 {[%emt 0:00:34]} Kf6 {[%emt 0:00:47]} 45. Re8 {[%emt 0:02:56]} Bf7 {[%emt 0:00:11]} 46. Rh8 {[%emt 0:00:55]} Ke7 {[%emt 0:00:32]} 47. Rc8 {[%emt 0:00:44]} Bxh5 {[%emt 0:00:17]} 48. c5 {[%emt 0:00:35]} Be5+ {[%emt 0:00:40]} 49. Kh1 {[%emt 0:01:10]} Bd4 {[%emt 0:00:57]} 50. cxb6 {[%emt 0:00:48]} Bxb6 {[%emt 0:00:01]} 51. Rb8 {[%emt 0:00:14]} Bc7 {[%emt 0:00:26]} 52. Rc8 {[%emt 0:01:33]} Kd6 {[%emt 0:00:29]} 53. Rg8 {[%emt 0:00:08]} Be2 {[%emt 0:01:03]} 54. Rg6+ {[%emt 0:00:06]} Kc5 {[%emt 0:00:09]} 55. Rxg5+ {[%emt 0:00:45]} Kb6 {[%emt 0:00:31]} 56. Rd5 {[%emt 0:00:10]} d6 {[%emt 0:00:02]} 57. b4 {[%emt 0:01:23]} Bd1 {[%emt 0:00:10]} 58. Kg1 {[%emt 0:00:57]} Bb3 {[%emt 0:00:06]} 59. Rf5 {[%emt 0:00:40]} Bc2 {[%emt 0:00:04]} 60. Rd5 {[%emt 0:00:16]} Bb3 {[%emt 0:01:23]} 61. Rh5 {[%emt 0:00:21]} Bc2 {[%emt 0:00:56]} 62. d4 {[%emt 0:00:41]} Be4 {[%emt 0:00:10]} 63. Kf2 {[%emt 0:02:00]} d5 {[%emt 0:00:04]} 64. g4 {[%emt 0:00:10]} Kxb5 {[%emt 0:00:11]} 65. Ke3 {[%emt 0:00:55]} Kxb4 {[%emt 0:02:16]} 66. Rh8 {[%emt 0:00:06]} Bb6 {[%emt 0:00:30]} 67. Rb8 {[%emt 0:00:06]} Kb5 {[%emt 0:00:06]} 68. g5 {[%emt 0:00:42]} Kc6 {[%emt 0:00:03]} 69. Rf8 {[%emt 0:00:45]} Kd7 {[%emt 0:00:08]} 70. Rf7+ {[%emt 0:00:45]} Ke8 {[%emt 0:00:06]} 71. Rb7 {[%emt 0:00:49]} Ba5 {[%emt 0:00:13]} 72. Ra7 {[%emt 0:01:10]} Bb4 1/2-1/2

[Event "Bhopal GM Open 2018"]
[Site "Bhopal"]
[Date "2018.12.24"]
[Round "5"]
[White "Jinan Jomon"]
[Black "Hemanth Raam"]
[Result "0-1"]
[ECO "C47"]
[WhiteElo "1795"]
[BlackElo "2032"]
[Annotator "NA RC"]
[PlyCount "54"]
[EventDate "2018.12.21"]
[EventType "swiss"]
[EventCountry "IND"]
[SourceTitle "playchess.com"]
[Source "ChessBase"]
[SourceQuality "1"]
[TimeControl "5400+30"]

1. e4 {[%emt 0:00:00]} e5 {[%emt 0:01:41]} 2. Nf3 {[%emt 0:00:00]} Nc6 {[%emt 0:00:09]} 3. Nc3 {[%emt 0:00:25]} Nf6 {[%emt 0:00:22]} 4. d4 {[%emt 0:00:08]} exd4 {[%emt 0:01:05]} 5. Nxd4 {[%emt 0:00:18]} Bb4 {[%emt 0:02:35]} 6. Nxc6 {[%emt 0:00:09]} bxc6 {[%emt 0:00:43]} 7. Bd3 {[%emt 0:00:07]} Bxc3+ {[%emt 0:03:59]} 8. bxc3 {[%emt 0:00:18]} h6 {[%emt 0:02:58]} 9. e5 {[%emt 0:02:10]} Nd5 {[%emt 0:01:28]} 10. Qg4 {[%emt 0:00:32]} Kf8 11. Qg3 {[%emt 0:13:18]} Ne7 {[%emt 0:04:43]} (11... h5 $16 {was necessary.}) 12. Ba3 {[%emt 0:20:22]} Kg8 {[%emt 0:01:27]} 13. c4 {[%emt 0:32:44]} d6 $16 {[%emt 0:02:57]} 14. exd6 {[%emt 0:02:00]} Nf5 {[%emt 0:00:43]} 15. Bxf5 {[%emt 0:05:08]} Bxf5 {[%emt 0:00:06]} 16. dxc7 {[%emt 0:08:08]} Qe8+ {[%emt 0:00:29]} 17. Kf1 {[%emt 0:04:08]} Qe4 {[%emt 0:00:50]} 18. Kg1 {[%emt 0:01:44]} Qxc2 {[%emt 0:00:52]} 19. Rc1 {[%emt 0:04:51]} Qxa2 {[%emt 0:00:20]} 20. h4 {[%emt 0:00:37]} Kh7 {[%emt 0:00:18]} 21. Bd6 {[%emt 0:01:11]} Rhe8 {[%emt 0:02:50]} 22. Kh2 {[%emt 0:01:19]} Re2 {[%emt 0:02:27]} 23. Bc5 {[%emt 0:01:05]} Re4 {[%emt 0:00:38]} 24. f3 {[%emt 0:00:43]} Rxc4 {[%emt 0:00:54]} 25. Ra1 {[%emt 0:00:31]} Qb2 {[%emt 0:00:37]} 26. Bxa7 {[%emt 0:00:26]} Qf6 {[%emt 0:00:26]} 27. Bf2 {[%emt 0:00:35]} Rxa1 {[%emt 0:00:19]} 0-1

[Event "Bhopal GM Open 2018"]
[Site "Bhopal"]
[Date "2018.12.24"]
[Round "5"]
[White "Shreyash Shuvam Patnaik"]
[Black "Himanshu Ranjan"]
[Result "1/2-1/2"]
[ECO "C06"]
[WhiteElo "1691"]
[BlackElo "2060"]
[Annotator "NA RC"]
[PlyCount "84"]
[EventDate "2018.12.21"]
[EventType "swiss"]
[EventCountry "IND"]
[SourceTitle "playchess.com"]
[Source "ChessBase"]
[SourceQuality "1"]
[TimeControl "5400+30"]

1. e4 {[%emt 0:00:00]} e6 {[%emt 0:00:00]} 2. d4 {[%emt 0:00:00]} d5 {[%emt 0:00:00]} 3. Nd2 {[%emt 0:00:00]} Nf6 {[%emt 0:00:00]} 4. e5 {[%emt 0:00:50]} Nfd7 {[%emt 0:00:00]} 5. c3 {[%emt 0:00:13]} c5 {[%emt 0:00:00]} 6. Bd3 {[%emt 0:02:01]} Nc6 {[%emt 0:00:00]} 7. Ne2 {[%emt 0:00:26]} cxd4 {[%emt 0:00:00]} 8. cxd4 {[%emt 0:00:07]} f6 {[%emt 0:00:05]} 9. exf6 {[%emt 0:01:10]} Nxf6 {[%emt 0:00:02]} 10. Nf3 {[%emt 0:00:47]} Bd6 {[%emt 0:00:03]} 11. O-O {[%emt 0:00:19]} O-O {[%emt 0:00:04]} 12. a3 {[%emt 0:00:55]} e5 {[%emt 0:01:26]} 13. dxe5 {[%emt 0:00:07]} Nxe5 {[%emt 0:00:08]} 14. Nxe5 {[%emt 0:00:05]} Bxe5 {[%emt 0:00:04]} 15. h3 {[%emt 0:08:23]} Qb6 16. Nc3 {[%emt 0:04:22]} Be6 {[%emt 0:15:44] C06: French Tarrasch: 3...Nf6 4 e5 Nfd7 5 Bd3 main lines} (16... Bxc3 17. bxc3 Bd7 18. Rb1 Qc7 19. Qb3 Bc6 20. Be3 Kh8 21. Rfe1 b6 22. Bd4 Ne4 23. Qc2 Qf4 24. Re3 Qxf2+ 25. Qxf2 Nxf2 {1-0 (34) Marholev,D (2413)-Boj Marques,J (1836) Albacete 2009}) 17. Kh1 $146 {[%emt 0:04:57]} ({Predecessor:} 17. Na4 $11 Qc7 (17... Qd4 18. Be3 Qh4 19. f4 Bd6 20. Nc5 Bxh3 21. Bf2 Qxf4 22. g3 Qg5 23. Qc1 Qh5 24. Qd1 Bg4 25. Qc2 Bf3 26. Bd4 Qh1+ 27. Kf2 Qg2+ 28. Ke3 Ng4# {0-1 (26) Shmarina,D (1757)-Belova,A (1970) Rybinsk 2008}) 18. Be3) 17... Rac8 {[%emt 0:08:40]} 18. Rb1 {[%emt 0:04:43]} (18. Re1 $11 Bb8 19. Be3) 18... Bb8 {[%emt 0:05:46]} 19. Be3 {[%emt 0:02:49]} Qd6 {[%emt 0:00:33]} 20. f4 {[%emt 0:00:37]} Qd7 {[%emt 0:04:03]} 21. Bb5 {[%emt 0:02:57]} Qd8 {[%emt 0:01:05]} 22. Bd3 {[%emt 0:11:23]} Qd7 {[%emt 0:01:36]} 23. Bb5 {[%emt 0:01:13]} Qf7 {[%emt 0:00:10]} 24. Bd3 {[%emt 0:06:41]} Nh5 {[%emt 0:09:26]} 25. Qe1 {[%emt 0:02:04]} (25. Rf3 $11 {keeps the balance.}) 25... d4 {[%emt 0:07:48]} 26. Bxd4 {[%emt 0:01:06]} Bxf4 {[%emt 0:11:20]} (26... Rcd8 $5 {[%cal Rd8d4]} 27. Ne2 Bxh3 $15) 27. Ne2 {[%emt 0:02:40]} Bxh3 {[%emt 0:03:23]} (27... Qd7 $11 {remains equal.}) 28. Nxf4 {[%emt 0:04:24]} Nxf4 {[%emt 0:09:55]} 29. gxh3 {[%emt 0:00:07]} Qh5 {[%emt 0:00:43] [#]} 30. Qe3 $1 {[%emt 0:10:06]} Nxh3 {[%emt 0:05:15]} 31. Bc4+ {[%emt 0:00:47]} Kh8 {[%emt 0:01:18]} 32. Bxg7+ {[%emt 0:03:35]} Kxg7 {[%emt 0:00:03]} 33. Qc3+ {[%emt 0:00:07]} Kh6 {[%emt 0:03:13]} 34. Rf6+ {[%emt 0:00:09]} Rxf6 {[%emt 0:02:03]} 35. Qxf6+ {[%emt 0:00:03]} Qg6 {[%emt 0:00:12]} 36. Qh4+ {[%emt 0:00:14]} Kg7 {[%emt 0:00:12]} 37. Qd4+ {[%emt 0:00:15]} Kh6 {[%emt 0:03:16]} 38. Rf1 {[%emt 0:03:44]} Rc6 $1 {[%emt 0:00:37]} 39. Bd3 $11 {[%emt 0:11:39]} Qg3 {[%emt 0:02:50]} 40. Rf6+ {[%emt 0:00:24]} Kg5 {[%emt 0:00:53]} 41. Rf5+ {[%emt 0:00:21]} Kh6 {[%emt 0:00:17]} 42. Rf6+ {[%emt 0:00:16]} Kg5 {[%emt 0:00:04]} 1/2-1/2